bitfinex-derivatives/quotes_SOLF0:USTF0_20250106
["timestamp","ask_amount","ask_price","bid_price","bid_amount"]
[1736147021546,7.36326486,215.4,215.37,2.3221]
[1736147022641,9.68506486,215.4,215.37,2.3221]
[1736147022845,9.68506486,215.4,215.36,2.3222]
[1736147023061,9.68536486,215.38,215.31,2.62]
[1736147023248,9.68536486,215.38,215.31,9.98326486]
[1736147023448,9.68536486,215.38,215.33,2.3225]
[1736147024349,2.62,215.41,215.32,7.36326486]
[1736147024648,9.68516486,215.39,215.35,2.3222]
[1736147025150,2.3219,215.39,215.35,2.3222]
[1736147025341,9.68516486,215.39,215.35,2.3222]
[1736147032160,2.3221,215.37,215.27,34.70778624]
[1736147032353,2.3221,215.37,215.31,7.36326486]
[1736147032655,7.36326486,215.33,215.27,34.70778624]
[1736147033155,2.3227,215.32,215.28,2.3231]
[1736147033351,7.36326486,215.31,215.24,7.36326486]
[1736147033952,7.36326486,215.31,215.23,7.36326486]
[1736147034157,9.68606486,215.31,215.25,2.3234]
[1736147035257,7.36326486,215.27,215.13,51.7660157]
[1736147035563,9.68646486,215.27,215.21,2.3238]
[1736147035859,9.68646486,215.27,215.2,7.36326486]
[1736147036848,9.68646486,215.27,215.22,2.3236]
[1736147037254,9.68646486,215.27,215.2,7.36326486]
[1736147038259,9.68646486,215.27,215.22,2.3237]
[1736147040262,9.68646486,215.27,215.2,7.36326486]
[1736147040458,9.68646486,215.27,215.23,2.3236]
[1736147044162,9.68676486,215.25,215.16,2.9728]
[1736147044363,7.36326486,215.25,215.17,7.36326486]
[1736147045054,7.36326486,215.23,215.15,1.388]
[1736147045263,7.36326486,215.21,215.15,7.36326486]
[1736147045465,2.62,215.26,215.15,7.36326486]
[1736147045660,7.36326486,215.23,215.17,7.36326486]
[1736147045863,2.62,215.26,215.19,7.36326486]
[1736147046059,9.98326486,215.26,215.19,7.36326486]
[1736147046659,2.3235,215.24,215.2,2.3239]
[1736147048663,7.36326486,215.24,215.18,9.68736486]
[1736147049257,7.36326486,215.24,215.18,2.3241]
[1736147049465,2.3238,215.22,215.18,2.3241]
[1736147050055,7.36326486,215.24,215.19,2.324]
[1736147050056,2.3236,215.23,215.19,2.324]
[1736147050763,7.36326486,215.22,215.19,2.324]
[1736147050970,7.36326486,215.22,215.13,2.62]
[1736147050971,9.68706486,215.22,215.17,2.3242]
[1736147051161,7.36326486,215.24,215.16,7.36326486]
[1736147052467,7.36326486,215.22,215.15,7.36326486]
[1736147052969,2.3239,215.21,215.15,7.36326486]
[1736147053158,7.36326486,215.22,215.15,7.36326486]
[1736147053565,9.68706486,215.22,215.17,2.3242]
[1736147053766,2.3238,215.22,215.17,9.68746486]
[1736147054172,9.68686486,215.24,215.19,2.3241]
[1736147055266,2.3237,215.23,215.19,2.3241]
[1736147056368,2.3238,215.22,215.18,2.3242]
[1736147056566,7.36326486,215.22,215.11,2.62]
[1736147056861,7.36326486,215.22,215.14,7.36326486]
[1736147057070,7.36326486,215.2,215.11,2.62]
[1736147057265,7.36326486,215.2,215.12,7.36326486]
[1736147057770,2.3241,215.19,215.13,2.3246]
[1736147058069,7.36326486,215.2,215.12,7.36326486]
[1736147058462,9.68736486,215.2,215.14,9.68786486]
[1736147058867,9.68736486,215.2,215.14,7.36326486]
[1736147059171,9.68736486,215.2,215.16,2.3244]
[1736147060772,7.36326486,215.2,215.11,2.62]
[1736147061070,2.3241,215.19,215.15,2.3245]
[1736147062567,7.36326486,215.16,215.03,4.4299]
[1736147062768,2.62,215.16,215.07,7.36326486]
[1736147063074,7.36326486,215.14,215.07,7.36326486]
[1736147063271,2.3248,215.12,215.08,2.3252]
[1736147064168,2.3247,215.13,215.08,2.3252]
[1736147065764,7.36326486,215.12,215.08,2.3252]
[1736147065966,9.68806486,215.12,215.08,2.3252]
[1736147067574,7.36326486,215.12,215.09,2.3251]
[1736147067873,7.36326486,215.12,215.03,4.4299]
[1736147068065,7.36326486,215.12,215.05,7.36326486]
[1736147069176,7.36326486,215.1,215.03,11.79316486]
[1736147069375,7.36326486,215.1,215.03,8.86486486]
[1736147069576,2.3251,215.1,215.05,2.3255]
[1736147069774,7.36326486,215.12,215.05,7.36326486]
[1736147070170,7.36326486,215.1,215.05,7.36326486]
[1736147070774,7.36326486,215.1,215.03,8.86486486]
[1736147071675,2.62,215.11,215.05,7.36326486]
[1736147072777,7.36326486,215.1,215.03,8.86486486]
[1736147073181,9.68826486,215.1,215.05,2.3256]
[1736147073669,2.3256,215.05,215.0,2.326]
[1736147073871,7.36326486,215.04,215.0,2.326]
[1736147074771,9.68896486,215.04,215.0,2.326]
[1736147075980,7.36326486,215.04,214.93,1.4185]
[1736147076170,2.3259,215.03,214.98,2.3263]
[1736147076482,7.36326486,215.0,214.92,7.36326486]
[1736147076681,7.36326486,214.98,214.92,7.36326486]
[1736147077083,7.36326486,214.98,214.93,2.3269]
[1736147077582,7.36326486,214.98,214.92,7.36326486]
[1736147078578,7.36326486,214.98,214.94,2.3268]
[1736147079679,4.9462,215.0,214.92,7.36326486]
[1736147079680,2.3259,215.03,214.97,2.3264]
[1736147079885,7.36326486,215.0,214.92,7.36326486]
[1736147080382,7.36326486,215.0,214.97,2.3264]
[1736147083683,7.36326486,215.0,214.92,7.36326486]
[1736147083885,7.36326486,215.0,214.96,2.3265]
[1736147084077,7.36326486,215.0,214.92,7.36326486]
[1736147084282,7.36326486,215.0,214.95,2.3266]
[1736147084484,7.36326486,214.98,214.92,7.36326486]
[1736147084684,7.36326486,214.98,214.9,7.36326486]
[1736147085284,2.62,214.97,214.89,2.9382]
[1736147085488,7.36326486,214.96,214.89,1.5384]
[1736147085689,7.36326486,214.94,214.89,1.5384]
[1736147085889,7.36326486,214.94,214.9,2.3272]
[1736147085890,9.69006486,214.94,214.9,2.3272]
[1736147086291,2.3269,214.93,214.88,2.3273]
[1736147086486,7.36326486,214.92,214.88,2.3273]
[1736147086693,7.36326486,214.92,214.86,7.36326486]
[1736147086884,7.36326486,214.92,214.84,7.36326486]
[1736147087192,2.3271,214.91,214.86,2.3276]
[1736147087387,7.36326486,214.9,214.86,2.3276]
[1736147087596,7.36326486,214.88,214.81,1.4046]
[1736147087789,9.69076486,214.88,214.83,2.3279]
[1736147087989,7.36326486,214.88,214.81,8.76786486]
[1736147088191,7.36326486,214.88,214.81,1.4046]
[1736147088488,7.36326486,214.88,214.83,2.3279]
[1736147089888,2.62,214.87,214.83,2.3279]
[1736147090086,7.36326486,214.86,214.83,2.3279]
[1736147091092,7.36326486,214.86,214.81,2.3281]
[1736147091693,7.36326486,214.84,214.82,2.3281]
[1736147092299,7.36326486,214.84,214.81,2.3282]
[1736147093397,7.36326486,214.84,214.77,7.36326486]
[1736147094095,7.36326486,214.84,214.79,2.3284]
[1736147094292,2.62,214.87,214.72,4.0436]
[1736147094293,7.36326486,214.82,214.75,7.36326486]
[1736147094494,7.36326486,214.82,214.72,1.4236]
[1736147094695,9.98326486,214.82,214.74,7.36326486]
[1736147095091,9.98326486,214.82,214.77,2.3285]
[1736147095394,7.36326486,214.8,214.77,2.3285]
[1736147095595,9.98326486,214.82,214.77,2.3285]
[1736147096394,12.31136486,214.82,214.77,2.3285]
[1736147096600,9.98326486,214.82,214.75,2.3287]
[1736147096800,7.36326486,214.78,214.75,2.3287]
[1736147096996,7.36326486,214.78,214.72,8.78686486]
[1736147097198,13.96,214.98,214.67,7.36326486]
[1736147097199,7.36326486,214.74,214.67,7.36326486]
[1736147098495,7.36326486,214.74,214.69,2.3295]
[1736147098799,7.36326486,214.74,214.67,7.36326486]
[1736147098999,7.36326486,214.74,214.64,2.62]
[1736147099200,7.36326486,214.74,214.68,7.36326486]
[1736147099400,7.36326486,214.74,214.72,2.3291]
[1736147100499,7.36326486,214.74,214.63,2.62]
[1736147100998,7.36326486,214.74,214.68,7.36326486]
[1736147101189,7.36326486,214.74,214.69,2.3294]
[1736147101390,7.36326486,214.74,214.68,7.36326486]
[1736147102202,2.811,214.81,214.7,7.36326486]
[1736147102500,7.36326486,214.81,214.75,7.36326486]
[1736147102699,1.4585,214.88,214.79,2.3283]
[1736147103002,7.36326486,214.82,214.77,7.36326486]
[1736147103198,7.36326486,214.84,214.82,2.328]
[1736147103701,2.62,214.85,214.81,2.3281]
[1736147103901,2.62,214.85,214.79,7.36326486]
[1736147104593,2.62,214.85,214.84,2.3278]
[1736147104995,2.62,214.85,214.81,7.36326486]
[1736147105193,9.98326486,214.85,214.79,7.36326486]
[1736147105402,7.36326486,214.83,214.77,7.36326486]
[1736147106394,9.98326486,214.85,214.79,7.36326486]
[1736147107004,9.98326486,214.85,214.81,2.3281]
[1736147108605,9.98326486,214.85,214.82,2.3281]
[1736147109201,1.4724,214.96,214.79,7.36326486]
[1736147109401,7.36326486,214.9,214.83,7.36326486]
[1736147109802,7.36326486,214.9,214.86,2.3276]
[1736147110496,7.36326486,214.9,214.87,2.3275]
[1736147111103,7.36326486,214.92,214.85,7.36326486]
[1736147111299,9.98326486,214.92,214.85,7.36326486]
[1736147111502,160.7182109,215.11,214.91,7.36326486]
[1736147111805,160.7182109,215.11,215.03,7.36326486]
[1736147112007,7.36326486,215.1,215.04,2.3257]
[1736147114109,7.36326486,215.1,215.05,2.3256]
[1736147114303,7.36326486,215.1,214.92,4.3301]
[1736147114510,7.36326486,215.06,214.93,2.62]
[1736147114702,7.36326486,215.06,214.99,7.36326486]
[1736147114904,7.36326486,215.04,214.98,2.62]
[1736147115106,2.3255,215.06,214.94,11.42634412]
[1736147115301,2.3255,215.06,214.95,2.62]
[1736147116204,13.75164412,215.08,215.0,2.3261]
[1736147116401,11.42634412,215.08,214.95,2.62]
[1736147116811,11.42634412,215.08,215.04,2.3256]
[1736147117010,5.0451,215.1,215.04,2.3256]
[1736147118614,2.3252,215.09,215.03,2.3258]
[1736147119112,2.72,215.1,214.97,11.42634412]
[1736147119813,11.42634412,215.08,214.97,11.42634412]
[1736147120402,2.3254,215.07,215.01,2.3259]
[1736147121713,2.3256,215.05,214.99,2.3261]
[1736147121911,11.42634412,215.05,214.92,4.3301]
[1736147122111,11.42634412,215.02,214.92,4.3301]
[1736147122413,2.3261,215.0,214.95,2.3267]
[1736147123315,11.42634412,215.02,214.95,2.3267]
[1736147123614,2.326,215.01,214.95,2.3267]
[1736147123815,11.42634412,215.02,214.95,2.3267]
[1736147124016,2.3261,215.0,214.95,2.3267]
[1736147125212,2.3262,214.99,214.93,2.3268]
[1736147126819,2.3262,214.99,214.94,2.3267]
[1736147128419,11.42634412,214.99,214.9,2.3271]
[1736147128616,11.42634412,214.99,214.88,2.72]
[1736147129018,2.3264,214.97,214.92,2.327]
[1736147129721,13.75264412,214.99,214.93,2.3268]
[1736147130115,13.75264412,214.99,214.88,14.14634412]
[1736147130316,13.75264412,214.99,214.93,2.3268]
[1736147131126,2.3264,214.97,214.92,2.327]
[1736147132422,2.3264,214.97,214.88,14.14634412]
[1736147132423,2.3264,214.97,214.93,2.3269]
[1736147132625,2.3263,214.99,214.88,14.14634412]
[1736147132928,2.72,215.02,214.96,2.3264]
[1736147133127,11.42634412,215.05,214.96,2.3264]
[1736147133325,2.72,215.04,214.96,2.3264]
[1736147133529,2.326,215.01,214.96,2.3264]
[1736147134026,2.326,215.01,214.97,2.3264]
[1736147135028,2.3259,215.03,214.97,2.3264]
[1736147135218,2.72,215.05,214.97,2.3264]
[1736147135822,2.326,215.02,214.97,2.3264]
[1736147137030,2.326,215.01,214.97,2.3264]
[1736147137227,11.42634412,215.03,214.94,2.3267]
[1736147137531,11.42634412,215.0,214.88,11.42634412]
[1736147137823,11.42634412,214.97,214.85,11.42634412]
[1736147138026,11.42634412,214.94,214.84,4.3638]
[1736147138225,2.72,214.93,214.84,1.4365]
[1736147138427,2.72,214.93,214.83,2.3279]
[1736147138732,5.6772,214.93,214.83,2.3279]
[1736147139230,2.3272,214.9,214.84,2.3278]
[1736147139632,2.3274,214.88,214.83,2.3279]
[1736147140130,5.0474,214.88,214.83,2.3279]
[1736147141730,2.72,214.88,214.81,2.3281]
[1736147141934,2.72,214.88,214.79,11.42634412]
[1736147142638,5.0474,214.88,214.83,2.3279]
[1736147143031,2.3278,214.85,214.79,2.3283]
[1736147143232,2.3278,214.85,214.77,4.351]
[1736147143836,14.14634412,214.88,214.8,2.3283]
[1736147144233,2.3279,214.84,214.75,11.42634412]
[1736147144426,14.14634412,214.88,214.75,11.42634412]
[1736147144627,2.72,214.87,214.75,11.42634412]
[1736147144835,2.328,214.83,214.78,2.3284]
[1736147145134,2.72,214.87,214.72,12.82164412]
[1736147145338,11.42634412,214.85,214.72,12.82164412]
[1736147146341,2.3281,214.82,214.76,2.3287]
[1736147146639,5.0481,214.82,214.76,2.3287]
[1736147146838,2.328,214.83,214.78,2.3285]
[1736147147139,2.7,214.82,214.78,2.3285]
[1736147147334,5.0281,214.82,214.76,2.3286]
[1736147147640,2.7,214.82,214.76,2.3286]
[1736147147834,2.3283,214.8,214.75,2.3288]
[1736147149437,5.0279,214.84,214.78,2.3284]
[1736147149638,5.0279,214.84,214.72,12.82164412]
[1736147150741,2.7,214.84,214.79,2.3284]
[1736147150941,2.7,214.84,214.72,12.82164412]
[1736147150942,2.7,214.85,214.75,11.42634412]
[1736147151448,5.0278,214.85,214.8,2.3283]
[1736147151647,2.9572,214.93,214.75,11.42634412]
[1736147151840,2.3276,214.87,214.83,2.328]
[1736147152044,5.0276,214.87,214.83,2.328]
[1736147153650,2.3274,214.89,214.84,2.3278]
[1736147153849,2.7,214.9,214.79,2.9609]
[1736147154238,2.3271,214.91,214.86,2.3276]
[1736147154444,5.0271,214.91,214.86,2.3276]
[1736147155053,2.7,214.91,214.86,2.3276]
[1736147155249,2.3272,214.9,214.86,2.3276]
[1736147155448,2.3272,214.9,214.85,2.3277]
[1736147158148,2.3272,214.9,214.86,2.3276]
[1736147158342,2.7,214.91,214.81,12.88374412]
[1736147158651,2.7,214.91,214.84,2.3278]
[1736147158851,2.7,214.91,214.81,12.88374412]
[1736147160245,5.0271,214.91,214.81,12.88374412]
[1736147160452,2.7,214.91,214.81,12.88374412]
[1736147161250,11.42634412,214.94,214.81,12.88374412]
[1736147161454,2.3272,214.9,214.85,2.3277]
[1736147162755,2.3272,214.9,214.81,12.88374412]
[1736147163054,2.3272,214.9,214.86,2.3276]
[1736147163654,2.7,214.93,214.86,2.3276]
[1736147163655,2.3271,214.91,214.86,2.3276]
[1736147165450,2.7,214.93,214.81,12.88374412]
[1736147165647,2.7,214.93,214.88,2.3273]
[1736147166351,2.3271,214.92,214.88,2.3273]
[1736147167154,2.7,214.93,214.86,2.3276]
[1736147167958,2.3271,214.91,214.86,2.3276]
[1736147168252,2.7,214.93,214.81,12.88374412]
[1736147168554,2.327,214.92,214.88,2.3274]
[1736147170257,2.7,214.93,214.81,12.88374412]
[1736147170451,5.0269,214.93,214.89,2.3273]
[1736147170656,2.7,214.93,214.81,12.88374412]
[1736147171056,2.3273,214.9,214.86,2.3275]
[1736147171355,2.7,214.93,214.81,12.88374412]
[1736147172358,2.327,214.92,214.88,2.3273]
[1736147173655,2.3271,214.91,214.88,2.3273]
[1736147174657,2.3273,214.9,214.86,2.3276]
[1736147175656,2.3273,214.9,214.83,7.32116956]
[1736147175862,7.32116956,214.89,214.81,8.77856956]
[1736147178463,2.3274,214.88,214.84,2.3278]
[1736147178663,2.3274,214.88,214.81,8.77856956]
[1736147179265,7.32116956,214.91,214.83,7.32116956]
[1736147179462,2.3273,214.9,214.83,7.32116956]
[1736147179663,2.3273,214.9,214.85,7.32116956]
[1736147180465,2.3273,214.9,214.86,2.3275]
[1736147181862,2.3275,214.88,214.83,9.64896956]
[1736147182065,7.32116956,214.87,214.81,8.77856956]
[1736147182264,7.32116956,214.87,214.8,7.32116956]
[1736147182969,2.66,214.88,214.79,2.9609]
[1736147183160,2.66,214.88,214.81,2.3281]
[1736147183769,2.66,214.88,214.85,2.3277]
[1736147183963,2.66,214.88,214.79,14.40710684]
[1736147184571,2.66,214.88,214.81,2.3281]
[1736147184770,2.66,214.88,214.79,14.40710684]
[1736147185168,2.66,214.88,214.84,2.3277]
[1736147185169,4.9874,214.88,214.84,2.3277]
[1736147186067,2.66,214.88,214.79,14.40710684]
[1736147187273,2.3274,214.89,214.85,2.3277]
[1736147188264,2.66,214.91,214.85,2.3277]
[1736147188569,2.66,214.91,214.87,2.3275]
[1736147188769,2.66,214.91,214.82,11.44620684]
[1736147189161,2.66,214.91,214.84,2.3278]
[1736147189362,2.66,214.91,214.82,11.44620684]
[1736147189568,4.9871,214.91,214.82,11.44620684]
[1736147189767,4.9871,214.91,214.86,2.3275]
[1736147189970,2.66,214.91,214.82,11.44620684]
[1736147190467,2.3274,214.88,214.84,2.3278]
[1736147191070,2.3274,214.88,214.85,2.3277]
[1736147192173,2.66,214.91,214.81,2.66]
[1736147192371,2.3276,214.86,214.82,2.328]
[1736147193068,2.66,214.91,214.79,2.9609]
[1736147193069,2.3279,214.84,214.8,2.3282]
[1736147194275,2.66,214.86,214.77,2.66]
[1736147194470,2.66,214.86,214.76,11.44620684]
[1736147195171,2.328,214.83,214.78,2.3285]
[1736147195376,14.10620684,214.86,214.73,14.29690684]
[1736147195978,2.3281,214.83,214.77,2.3286]
[1736147196178,14.10620684,214.86,214.73,14.29690684]
[1736147196576,11.44620684,214.83,214.73,2.8507]
[1736147197884,2.3282,214.81,214.76,2.3287]
[1736147198183,4.9882,214.81,214.76,2.3287]
[1736147198385,4.9882,214.81,214.73,2.8507]
[1736147199485,2.3283,214.8,214.76,2.3286]
[1736147200185,4.9882,214.81,214.76,2.3286]
[1736147200678,11.44620684,214.86,214.73,14.29690684]
[1736147200884,2.66,214.85,214.73,14.29690684]
[1736147201284,2.66,214.85,214.81,2.3281]
[1736147202087,2.66,214.85,214.79,2.3283]
[1736147202489,2.328,214.83,214.79,2.3283]
[1736147203184,2.328,214.83,214.78,2.3285]
[1736147203487,2.328,214.83,214.77,7.32677035]
[1736147203888,7.32677035,214.84,214.77,7.32677035]
[1736147204186,2.66,214.87,214.81,7.32677035]
[1736147204582,2.66,214.87,214.83,2.3279]
[1736147205892,9.65407035,214.9,214.85,2.3277]
[1736147206092,2.66,214.89,214.85,2.3277]
[1736147207589,2.66,214.91,214.8,11.44108821]
[1736147207790,2.66,214.91,214.81,4.388]
[1736147207990,2.3273,214.9,214.85,2.3277]
[1736147210788,2.3273,214.9,214.81,4.388]
[1736147210994,2.3273,214.9,214.86,2.3276]
[1736147211697,2.3271,214.92,214.88,2.3274]
[1736147212092,4.3267,214.95,214.88,2.3273]
[1736147212293,4.66,214.95,214.86,11.44108821]
[1736147213390,2.3269,214.93,214.89,2.3273]
[1736147216594,6.9867,214.95,214.9,2.3272]
[1736147216794,2.0,214.95,214.86,11.44108821]
[1736147217195,2.0,214.95,214.93,2.3269]
[1736147217799,2.0,214.95,214.89,11.44108821]
[1736147217993,2.0,214.95,214.94,2.3268]
[1736147218498,2.0,214.95,214.89,11.44108821]
[1736147219394,2.0,214.95,214.86,11.44108821]
[1736147219594,2.0,214.95,214.91,2.327]
[1736147219896,2.0,214.95,214.86,11.44108821]
[1736147221199,2.0,214.95,214.93,2.3268]
[1736147227997,2.0,214.95,214.94,2.3268]
[1736147229501,7.31718014,215.02,214.96,7.31718014]
[1736147230499,9.64308014,215.02,214.98,2.3262]
[1736147231004,2.3259,215.02,214.98,2.3262]
[1736147231504,7.31718014,215.04,214.99,2.3262]
[1736147231704,7.31718014,215.04,214.98,7.31718014]
[1736147232101,9.64298014,215.04,215.0,2.326]
[1736147233507,2.3258,215.03,215.0,2.326]
[1736147233909,7.31718014,215.02,214.98,2.3263]
[1736147234203,7.31718014,215.02,214.93,4.3185]
[1736147234407,7.31718014,215.02,214.96,2.3265]
[1736147234800,7.31718014,215.02,214.94,7.31718014]
[1736147235110,9.64338014,215.0,214.94,7.31718014]
[1736147235405,9.64338014,215.0,214.96,2.3265]
[1736147235598,2.3262,215.0,214.96,2.3265]
[1736147237407,7.31718014,215.02,214.94,7.31718014]
[1736147237607,7.31718014,215.0,214.95,2.3266]
[1736147239304,2.3262,214.99,214.95,2.3266]
[1736147244905,7.31718014,215.0,214.94,7.31718014]
[1736147245110,2.3265,214.97,214.93,2.3268]
[1736147245511,7.31718014,214.98,214.9,7.31718014]
[1736147245711,2.3267,214.95,214.91,2.327]
[1736147246509,2.3267,214.95,214.9,7.31718014]
[1736147246510,2.3267,214.95,214.92,2.327]
[1736147252014,2.3267,214.95,214.92,9.64418014]
[1736147252421,2.3262,215.0,214.94,7.31718014]
[1736147252715,7.31718014,214.99,214.91,7.31718014]
[1736147253505,7.31718014,214.99,214.93,2.3268]
[1736147253506,2.3265,214.97,214.93,2.3268]
[1736147257319,2.3263,214.98,214.94,2.3267]
[1736147257520,2.3263,214.98,214.93,7.31718014]
[1736147258521,2.3263,214.98,214.95,2.3266]
[1736147258915,2.64,215.0,214.87,4.1167]
[1736147259115,4.9662,215.0,214.96,2.3264]
[1736147259326,7.31718014,215.04,214.97,7.31718014]
[1736147259822,9.64298014,215.04,214.99,2.3262]
[1736147260027,9.64298014,215.04,214.97,7.31718014]
[1736147260522,2.3258,215.03,214.99,2.3262]
[1736147263419,2.3257,215.05,214.99,7.31718014]
[1736147263620,7.31718014,215.07,214.99,7.31718014]
[1736147263819,4.0425,215.1,214.95,4.5354]
[1736147264020,7.31718014,215.09,215.02,7.31718014]
[1736147264219,7.31718014,215.09,215.04,2.3257]
[1736147265520,2.3253,215.08,215.04,2.3257]
[1736147269929,2.3252,215.09,215.05,2.3256]
[1736147270126,7.31718014,215.13,215.06,7.31718014]
[1736147270320,1.526,215.14,215.08,7.31718014]
[1736147270523,7.31718014,215.15,215.08,7.31718014]
[1736147271524,2.3247,215.13,215.09,2.3251]
[1736147273022,2.3247,215.13,215.08,9.64238014]
[1736147273329,7.31718014,215.15,215.08,9.64238014]
[1736147273625,2.3248,215.13,215.08,9.64238014]
[1736147273830,7.31718014,215.15,215.08,9.64238014]
[1736147274826,7.31718014,215.15,215.08,7.31718014]
[1736147275629,7.31718014,215.13,215.06,7.31718014]
[1736147276232,7.31718014,215.13,215.04,2.62]
[1736147276533,7.31718014,215.11,214.95,4.5354]
[1736147276728,7.31718014,215.11,215.04,9.64288014]
[1736147277233,2.3251,215.1,215.05,2.3255]
[1736147277423,7.31718014,215.12,215.05,2.3255]
[1736147278028,2.3252,215.09,215.05,2.3255]
[1736147278232,7.31718014,215.12,215.05,2.3255]
[1736147278433,2.62,215.13,215.05,2.3255]
[1736147278646,2.3252,215.09,215.05,2.3255]
[1736147280827,2.3252,215.09,215.06,2.3254]
[1736147282735,7.31718014,215.11,215.05,2.3256]
[1736147283034,7.31718014,215.09,215.02,7.31718014]
[1736147283329,7.31718014,215.07,215.01,2.326]
[1736147283831,2.62,215.13,215.02,7.31718014]
[1736147284035,2.3253,215.08,215.02,7.31718014]
[1736147284236,7.31718014,215.09,215.02,7.31718014]
[1736147285127,2.3255,215.06,215.02,2.3259]
[1736147285334,7.31718014,215.07,215.01,7.31718014]
[1736147285534,7.31718014,215.09,215.01,7.31718014]
[1736147286334,2.3254,215.07,215.02,2.3258]
[1736147287137,9.93718014,215.12,215.05,7.31718014]
[1736147287836,2.3251,215.1,215.06,2.3255]
[1736147288031,7.31718014,215.1,215.03,7.31718014]
[1736147289437,2.3252,215.09,215.05,2.3255]
[1736147289939,7.31718014,215.1,215.03,7.31718014]
[1736147290239,2.3254,215.07,215.03,9.64288014]
[1736147290442,7.31718014,215.1,215.03,7.31718014]
[1736147290733,7.31718014,215.1,215.03,9.64298014]
[1736147290734,2.3254,215.07,215.03,9.64298014]
[1736147292041,2.3253,215.08,215.03,9.64298014]
[1736147292741,2.3253,215.08,215.03,7.31718014]
[1736147292941,2.3253,215.08,215.04,2.3257]
[1736147294043,7.31718014,215.08,214.99,2.62]
[1736147294232,2.3254,215.07,215.02,2.3258]
[1736147295244,2.3254,215.07,215.03,2.3258]
[1736147295437,9.64248014,215.08,215.01,7.31718014]
[1736147295639,2.3253,215.08,215.03,7.31718014]
[1736147295937,7.31718014,215.1,215.03,7.31718014]
[1736147296639,2.325,215.11,215.06,2.3254]
[1736147297035,2.62,215.15,215.07,7.31718014]
[1736147297237,9.64188014,215.14,215.09,2.3251]
[1736147297444,9.64188014,215.14,215.07,7.31718014]
[1736147297945,7.31718014,215.14,215.07,7.31718014]
[1736147298138,7.31718014,215.14,215.09,2.325]
[1736147298636,7.31718014,215.14,215.07,7.31718014]
[1736147299139,7.31718014,215.12,215.05,7.31718014]
[1736147300333,2.3248,215.13,215.07,7.31718014]
[1736147300541,7.31718014,215.14,215.07,7.31718014]
[1736147301440,2.3251,215.1,215.07,7.31718014]
[1736147305644,2.3251,215.1,215.06,2.3254]
[1736147306445,7.31718014,215.14,215.07,7.31718014]
[1736147308044,9.64178014,215.14,215.1,2.3249]
[1736147308245,2.3246,215.14,215.09,7.31718014]
[1736147308445,2.3246,215.14,215.07,7.31718014]
[1736147308845,2.3246,215.14,215.1,2.3249]
[1736147309147,2.3246,215.14,215.07,7.31718014]
[1736147309446,2.3246,215.14,215.11,2.3249]
[1736147310750,2.3243,215.17,215.11,2.3248]
[1736147310946,2.3243,215.17,215.11,7.31718014]
[1736147312144,7.31718014,215.18,215.13,2.3247]
[1736147312442,7.31718014,215.18,215.11,7.31718014]
[1736147312443,2.3245,215.16,215.11,7.31718014]
[1736147313448,2.3245,215.16,215.12,2.3248]
[1736147313746,11.42288014,215.19,215.06,2.9728]
[1736147313946,11.42288014,215.19,215.12,2.3248]
[1736147314847,2.3243,215.17,215.13,2.3247]
[1736147315043,2.3243,215.17,215.13,9.64188014]
[1736147316144,2.3243,215.17,215.14,2.3246]
[1736147316646,2.3244,215.16,215.13,7.31718014]
[1736147316850,2.3244,215.16,215.12,2.3247]
[1736147318441,7.31718014,215.17,215.09,2.325]
[1736147318641,7.31718014,215.15,215.09,7.31718014]
[1736147319143,2.3247,215.14,215.09,7.31718014]
[1736147319353,7.31718014,215.15,215.09,7.31718014]
[1736147320350,2.3248,215.13,215.1,2.325]
[1736147321453,2.3246,215.15,215.12,2.3248]
[1736147321954,7.31718014,215.17,215.12,2.3248]
[1736147322153,2.3245,215.16,215.12,2.3248]
[1736147323055,2.3245,215.15,215.12,2.3248]
[1736147336461,2.3245,215.15,215.09,7.31718014]
[1736147336661,2.3245,215.15,215.11,2.3249]
[1736147336861,7.31718014,215.16,215.06,2.9728]